fUSD/lending_fUSD_20251017
["ID","MTS","AMOUNT","RATE_DAILY","PERIOD"]
[391622514,1760709039226,-168.0,0.00015918,2]
[391622515,1760709039237,-255.0,0.00016031,2]
[391622516,1760709039247,-2732.0,0.0001604,2]
[391622517,1760709039258,-2732.0,0.00016092,2]
[391622518,1760709039268,-5043.64497568,0.00016102,2]
[391622519,1760709039277,-521.51255989,0.0001615,2]
[391622520,1760709039287,-168.0,0.0001621,2]
[391622521,1760709039297,-2732.0,0.00016274,2]
[391622522,1760709039306,-2732.0,0.00016336,2]
[391622523,1760709039316,-166.66,0.00016357,2]
[391622524,1760709039326,-500.0,0.00016361,2]
[391622525,1760709039336,-8142.01,0.00016396,2]
[391622526,1760709039346,-521.51255989,0.00016401,2]
[391622527,1760709039357,-2732.0,0.00016401,2]
[391622528,1760709039367,-168.0,0.00016416,2]
[391622529,1760709039377,-2732.0,0.00016421,2]
[391622530,1760709039388,-437.35,0.00016438,30]
[391622531,1760709039398,-176.41333544,0.00016497,2]
[391622533,1760709039408,-5043.64497568,0.00016503,2]
[391622535,1760709039418,-521.51255989,0.00016652,2]
[391622537,1760709039433,-166.66,0.00016701,2]
[391622539,1760709039443,-308.83847,0.0001685,2]
[391622541,1760709039452,-947.2938278,0.00016897,2]
[391622543,1760709039462,-521.51255989,0.00016902,2]
[391622545,1760709039472,-5043.64497568,0.00016903,2]
[391622548,1760709039483,-18792.7792938,0.00016919,2]
[391622551,1760709039493,-26397.4307493,0.00016919,2]
[391622553,1760709039503,-166.66,0.00017046,2]
[391622555,1760709039513,-521.51255989,0.00017153,2]
[391622557,1760709039523,-59672.9889412,0.00017177,2]
[391622558,1760709039533,-433.0,0.00017253,2]
[391622559,1760709039543,-5043.64497568,0.00017304,2]
[391622560,1760709039553,-211.3698235,0.00017321,2]
[391622561,1760709039562,-4193.2358534,0.00017348,2]
[391622562,1760709039571,-5890.0629506,0.00017348,2]
[391622563,1760709039582,-166.66,0.0001739,2]
[391622564,1760709039595,-150.0,0.00017513,2]
[391622565,1760709039605,-326.27104919,0.00017571,2]
[391622566,1760709039615,-2751.0,0.00017598,2]
[391622567,1760709039625,-1000.0,0.00017628,2]
[391622568,1760709039635,-1500.0,0.00017635,2]
[391622569,1760709039645,-13314.8435789,0.00017664,2]
[391622570,1760709039654,-5043.64497568,0.00017705,2]
[391622571,1760709039665,-317.68175828,0.00017731,2]
[391622572,1760709039677,-166.66,0.00017734,2]
[391622573,1760709039687,-308.83847,0.0001785,2]
[391622574,1760709039696,-150.0,0.00017958,2]
[391622575,1760709039706,-166.66,0.00018079,2]
[391622576,1760709039715,-150.79,0.00018082,2]
[391622577,1760709039725,-5043.64497568,0.00018106,2]
[391622578,1760709039734,-5043.64497568,0.00018507,2]
[391622579,1760709039744,-736.0,0.00018564,2]
[391622580,1760709039753,-322.6107,0.00018607,2]
[391622581,1760709039763,-1000.0,0.00018607,2]
[391622582,1760709039772,-151.0,0.00018607,2]
[391622583,1760709039782,-1000.0,0.00018607,2]
[391622584,1760709039792,-1000.0,0.00018607,2]
[391622585,1760709039802,-1000.0,0.00018607,2]
[391622586,1760709039812,-1000.0,0.00018607,2]
[391622587,1760709039821,-1000.0,0.00018607,2]
[391622588,1760709039831,-1000.0,0.00018607,2]
[391622589,1760709039840,-1000.0,0.00018607,2]
[391622590,1760709039849,-1000.0,0.00018607,2]
[391622591,1760709039859,-1000.0,0.00018607,2]
[391622592,1760709039868,-151.0,0.00018607,2]
[391622593,1760709039878,-300.0,0.00018607,2]
[391622594,1760709039888,-1000.0,0.00018607,2]
[391622595,1760709039897,-695.39793187,0.00018607,2]
[391622596,1760709039907,-1000.0,0.00018607,2]
[391622597,1760709039916,-1000.0,0.00018607,2]
[391622598,1760709039930,-181.24048404,0.00018607,2]
[391622599,1760709039939,-1000.0,0.00018607,2]
[391622600,1760709039949,-1000.0,0.00018607,2]
[391622601,1760709039959,-1000.0,0.00018607,2]
[391622602,1760709039968,-1000.0,0.00018607,2]
[391622603,1760709039977,-1000.0,0.00018607,2]
[391622604,1760709039987,-1000.0,0.00018607,2]
[391622605,1760709040002,-1000.0,0.00018607,2]
[391622606,1760709040012,-1000.0,0.00018607,2]
[391622607,1760709040021,-1000.0,0.00018607,2]
[391622608,1760709040031,-1000.0,0.00018607,2]
[391622609,1760709040040,-573.23040754,0.00018607,2]
[391622610,1760709040049,-337.04050925,0.00018607,2]
[391622611,1760709040058,-1000.0,0.00018607,2]
[391622612,1760709040068,-250.0,0.00018607,2]
[391622613,1760709040078,-500.0,0.00018607,2]
[391622614,1760709040087,-1000.0,0.00018607,2]
[391622615,1760709040097,-250.0,0.00018607,2]
[391622616,1760709040107,-500.0,0.00018607,2]
[391622617,1760709040116,-1000.0,0.00018607,2]
[391622618,1760709040125,-250.0,0.00018607,2]
[391622619,1760709040135,-500.0,0.00018607,2]
[391622620,1760709040144,-1000.0,0.00018607,2]
[391622621,1760709040154,-250.0,0.00018607,2]
[391622622,1760709040163,-500.0,0.00018607,2]
[391622623,1760709040172,-1000.0,0.00018607,2]
[391622624,1760709040185,-250.0,0.00018607,2]
[391622625,1760709040195,-500.0,0.00018607,2]
[391622626,1760709040204,-1000.0,0.00018607,2]
[391622627,1760709040214,-9211.34798985,0.00018607,2]
[391622628,1760709040223,-160.0,0.00018607,2]
[391622629,1760709040233,-250.0,0.00018607,2]
[391622630,1760709040244,-1000.0,0.00018607,2]
[391622631,1760709040259,-500.0,0.00018607,2]
[391622632,1760709040268,-250.0,0.00018607,2]
[391622633,1760709040278,-1000.0,0.00018607,2]
[391622634,1760709040288,-500.0,0.00018607,2]
[391622635,1760709040298,-1000.0,0.00018607,2]
[391622636,1760709040307,-250.0,0.00018607,2]
[391622637,1760709040317,-1000.0,0.00018607,2]
[391622638,1760709040328,-500.0,0.00018607,2]
[391622639,1760709040338,-250.0,0.00018607,2]
[391622640,1760709040348,-1000.0,0.00018607,2]
[391622641,1760709040358,-500.0,0.00018607,2]
[391622642,1760709040368,-250.0,0.00018607,2]
[391622643,1760709040378,-500.0,0.00018607,2]
[391622644,1760709040387,-151.0,0.00018607,2]
[391622645,1760709040397,-250.0,0.00018607,2]
[391622646,1760709040407,-500.0,0.00018607,2]
[391622647,1760709040417,-151.0,0.00018607,2]
[391622648,1760709040431,-151.0,0.00018607,2]
[391622649,1760709040441,-250.0,0.00018607,2]
[391622650,1760709040451,-267.46074303,0.00018607,2]
[391622651,1760709040461,-500.0,0.00018607,2]
[391622652,1760709040470,-151.0,0.00018607,2]
[391622653,1760709040480,-151.0,0.00018607,2]
[391622654,1760709040490,-151.0,0.00018607,2]
[391622655,1760709040500,-250.0,0.00018607,2]
[391622656,1760709040510,-151.0,0.00018607,2]
[391622657,1760709040519,-250.0,0.00018607,2]
[391622658,1760709040529,-151.0,0.00018607,2]
[391622659,1760709040539,-250.0,0.00018607,2]
[391622660,1760709040548,-151.0,0.00018607,2]
[391622661,1760709040558,-151.0,0.00018607,2]
[391622662,1760709040567,-250.0,0.00018607,2]
[391622663,1760709040577,-151.0,0.00018607,2]
[391622664,1760709040589,-250.0,0.00018607,2]
[391622665,1760709040598,-151.0,0.00018607,2]
[391622666,1760709040608,-250.0,0.00018607,2]
[391622668,1760709040617,-250.0,0.00018607,2]
[391622670,1760709040627,-250.0,0.00018607,2]
[391622672,1760709040636,-250.0,0.00018607,2]
[391622674,1760709040645,-250.0,0.00018607,2]
[391622676,1760709040655,-250.0,0.00018607,2]
[391622678,1760709040665,-250.0,0.00018607,2]
[391622679,1760709040679,-250.0,0.00018607,2]
[391622680,1760709040688,-3000.0,0.00018607,2]
[391622681,1760709040697,-250.0,0.00018607,2]
[391622682,1760709040707,-3000.0,0.00018607,2]
[391622683,1760709040716,-250.0,0.00018607,2]
[391622684,1760709040725,-3000.0,0.00018607,2]
[391622685,1760709040735,-250.0,0.00018607,2]
[391622686,1760709040744,-3000.0,0.00018607,2]
[391622687,1760709040754,-250.0,0.00018607,2]
[391622688,1760709040764,-250.0,0.00018607,2]
[391622689,1760709040775,-3000.0,0.00018607,2]
[391622690,1760709040786,-668.65185757,0.00018607,2]
[391622691,1760709040795,-250.0,0.00018607,2]
[391622692,1760709040805,-514.81366092,0.00018607,2]
[391622693,1760709040814,-250.0,0.00018607,2]
[391622694,1760709040823,-250.0,0.00018607,2]
[391622695,1760709040833,-250.0,0.00018607,2]
[391622696,1760709040842,-250.0,0.00018607,2]
[391622697,1760709040852,-250.0,0.00018607,2]
[391622698,1760709040861,-501.26726669,0.0001865,2]
[391622699,1760709040871,-9552.16786547,0.00018662,2]
[391622700,1760709040880,-9905.5980765,0.00018717,2]
[391622701,1760709040890,-10272.10520533,0.00018772,2]
[391622702,1760709040900,-151.29,0.000188,2]
[391622703,1760709040909,-151.29,0.000188,2]
[391622704,1760709040918,-10652.17309792,0.00018827,2]
[391622705,1760709040931,-308.83846,0.0001885,2]
[391622706,1760709040941,-475.6557911,0.00018866,2]
[391622707,1760709040955,-11046.30350255,0.00018882,2]
[391622708,1760709040965,-300.77557689,0.000189,2]
[391622709,1760709040975,-212.96111083,0.000189,2]
[391622710,1760709040984,-253.86211622,0.000189,2]
[391622711,1760709040993,-1591.58054587,0.000189,2]
[391622712,1760709041003,-11455.01673214,0.00018937,2]
[391622713,1760709041012,-357.71693695,0.00018947,2]
[391622714,1760709041022,-221.68,0.00018972,2]
[391622715,1760709041032,-11878.85235123,0.00018992,2]
[391622716,1760709041041,-91446.96018226,0.00019,2]
[391622717,1760709041052,-12318.36988823,0.00019047,2]
[391622718,1760709041061,-300.77557689,0.000191,2]
[391622719,1760709041071,-253.86211622,0.000191,2]
[391622720,1760709041080,-212.96111083,0.000191,2]
[391622721,1760709041090,-1591.58054587,0.000191,2]
[391622722,1760709041100,-12774.14957409,0.00019102,2]
[391622723,1760709041110,-151.0,0.00019155,2]
[391622724,1760709041120,-175.74157208,0.00019155,2]
[391622725,1760709041130,-13246.79310833,0.00019157,2]
[391622726,1760709041140,-300.77557689,0.000192,2]
[391622727,1760709041150,-253.86211622,0.000192,2]
[391622728,1760709041160,-212.96111083,0.000192,2]
[391622729,1760709041170,-1591.58054587,0.000192,2]
[391622730,1760709041182,-13736.92445334,0.00019212,2]
[391622731,1760709041192,-1000.0,0.00019391,2]
[391622732,1760709041202,-300.77557689,0.000194,2]
[391622733,1760709041211,-212.96111083,0.000194,2]
[391622734,1760709041221,-253.86211622,0.000194,2]
[391622735,1760709041231,-1591.58054587,0.000194,2]
[391622736,1760709041240,-300.77557689,0.000196,2]
[391622737,1760709041250,-212.96111083,0.000196,2]
[391622738,1760709041260,-253.86211622,0.000196,2]
[391622739,1760709041270,-1591.58054587,0.000196,2]
[391622740,1760709041280,-3021.0,0.00019633,2]
[391622741,1760709041289,-151.0,0.00019703,2]
[391622742,1760709041299,-585.94,0.00019795,2]
[391622743,1760709041309,-308.83847,0.0001985,2]
[391622744,1760709041318,-1130.0,0.00019965,2]
[391622745,1760709041328,-334.5472959,0.00019976,2]
[391622746,1760709041338,-277.35679052,0.00019976,2]
[391622747,1760709041349,-40215.42551848,0.0002,2]
[391622748,1760709041359,-1000.0,0.0002,4]
[391622749,1760709041370,-380.35,0.00020187,2]
[391622750,1760709041379,-2050.0,0.00020188,2]
[391622751,1760709041390,-771.264,0.00020188,2]
[391622752,1760709041401,-3408.0,0.00020188,2]
[391622753,1760709041410,-1267.0,0.00020188,2]
[391622754,1760709041420,-1310.0,0.00020188,2]
[391622755,1760709041434,-1589.0,0.00020188,2]
[391622756,1760709041443,-605.0,0.00020188,2]
[391622757,1760709041453,-571.0,0.00020188,2]
[391622758,1760709041462,-2546.0,0.00020188,2]
[391622759,1760709041472,-1183.0,0.00020188,2]
[391622760,1760709041482,-902.0,0.00020188,2]
[391622761,1760709041492,-816.0,0.00020188,2]
[391622762,1760709041502,-3356.0,0.00020188,2]
[391622763,1760709041513,-6436.0,0.00020188,2]
[391622764,1760709041523,-6445.0,0.00020188,2]
[391622765,1760709041533,-326.27104919,0.00020242,2]
[391622766,1760709041543,-153.0,0.00020407,2]
[391622767,1760709041553,-153.0,0.00020407,2]
[391622768,1760709041565,-153.0,0.00020407,2]
[391622769,1760709041575,-153.0,0.00020407,2]
[391622770,1760709041588,-153.0,0.00020407,2]
[391622771,1760709041598,-153.0,0.00020407,2]
[391622772,1760709041608,-153.0,0.00020407,2]
[391622773,1760709041619,-237.0,0.00020409,2]
[391622774,1760709041630,-237.0,0.00020409,2]
[391622775,1760709041641,-237.0,0.00020409,2]
[391622776,1760709041652,-237.0,0.00020409,2]
[391622777,1760709041664,-237.0,0.00020409,2]
[391622778,1760709041679,-237.0,0.00020409,2]
[391622779,1760709041693,-237.0,0.00020409,2]
[391622780,1760709041704,-237.0,0.00020409,2]
[391622781,1760709041715,-237.0,0.00020409,2]
[391622782,1760709041724,-237.0,0.00020409,2]
[391622783,1760709041734,-237.0,0.00020409,2]
[391622784,1760709041744,-237.0,0.00020409,2]
[391622785,1760709041754,-237.0,0.00020409,2]
[391622786,1760709041764,-237.0,0.00020409,2]
[391622787,1760709041773,-153.0,0.00020415,2]
[391622788,1760709041783,-153.0,0.00020415,2]
[391622789,1760709041793,-153.0,0.00020415,2]
[391622790,1760709041803,-153.0,0.00020415,2]
[391622791,1760709041813,-153.0,0.00020415,2]
[391622792,1760709041824,-153.0,0.00020415,2]
[391622793,1760709041834,-237.0,0.00020417,2]
[391622794,1760709041844,-237.0,0.00020417,2]
[391622795,1760709041854,-237.0,0.00020417,2]
[391622796,1760709041864,-237.0,0.00020417,2]
[391622797,1760709041875,-237.0,0.00020417,2]
[391622798,1760709041885,-237.0,0.00020417,2]
[391622799,1760709041895,-237.0,0.00020417,2]
[391622800,1760709041905,-237.0,0.00020417,2]
[391622801,1760709041915,-237.0,0.00020417,2]
[391622802,1760709041930,-237.0,0.00020417,2]
[391622803,1760709041940,-237.0,0.00020417,2]
[391622804,1760709041950,-237.0,0.00020417,2]
[391622805,1760709041961,-237.0,0.00020417,2]
[391622806,1760709041971,-237.0,0.00020417,2]
[391622807,1760709041981,-1000.0,0.00021154,2]
[391622808,1760709041991,-346.92554585,0.00021345,2]
[391622809,1760709042001,-287.61899177,0.00021345,2]
[391622810,1760709042011,-721.12765535,0.00021346,2]
[391622811,1760709042021,-694.43963852,0.00021346,2]
[391622812,1760709042032,-357.71693691,0.00021352,2]
[391622813,1760709042051,-437.35,0.0002142,30]
[391622814,1760709042079,-221.68,0.00021886,2]
[391622815,1760709042090,-261.23436234,0.00021917,2]
[391622816,1760709042101,-10000.0,0.00021917,2]
[391622817,1760709042111,-615.84,0.00021917,2]
[391622818,1760709042122,-615.84,0.00021917,2]
[391622819,1760709042132,-615.84,0.00021917,2]
[391622820,1760709042142,-615.84,0.00021917,2]
[391622821,1760709042152,-615.84,0.00021917,2]
[391622822,1760709042163,-615.84,0.00021917,2]
[391622823,1760709042172,-615.84,0.00021917,2]
[391622824,1760709042187,-615.84,0.00021917,2]
[391622825,1760709042198,-615.84,0.00021917,2]
[391622826,1760709042208,-615.84,0.00021917,2]
[391622827,1760709042219,-615.84,0.00021917,2]
[391622828,1760709042230,-615.84,0.00021917,2]
[391622829,1760709042240,-615.84,0.00021917,2]
[391622830,1760709042250,-615.84,0.00021917,2]
[391622831,1760709042260,-615.84,0.00021917,2]
[391622832,1760709042271,-615.84,0.00021917,2]
[391622833,1760709042282,-615.84,0.00021917,2]
[391622834,1760709042292,-615.84,0.00021917,2]
[391622835,1760709042302,-615.84,0.00021917,2]
[391622836,1760709042313,-615.84,0.00021917,2]
[391622837,1760709042323,-615.84,0.00021917,2]
[391622839,1760709042334,-615.84,0.00021917,2]
[391622841,1760709042344,-615.84,0.00021917,2]
[391622843,1760709042355,-615.94419433,0.00021917,2]
[391622846,1760709042365,-5000.0,0.00021918,2]
[391622847,1760709042375,-14928.46,0.00022,7]
[391622848,1760709042385,-157.6,0.00022,2]
[391622849,1760709042394,-6514.0,0.000222,2]
[391622860,1760709042513,-150.0,0.0002239,2]
[391622861,1760709042523,-3708.43342937,0.0002239,2]
[391622862,1760709042533,-4000.0,0.00022562,2]
[391622863,1760709042543,-1181.51,0.00022562,2]
[391622864,1760709042552,-6395.43,0.00022562,2]
[391622865,1760709042563,-359.76179104,0.00022714,2]
[391622866,1760709042573,-298.26089446,0.00022714,2]
[391622867,1760709042583,-200.430518,0.000228,2]
[391622868,1760709042597,-5512.0,0.000228,3]
[391622869,1760709042607,-326.27104919,0.00022913,2]
[391622870,1760709042617,-277.77924532,0.00022993,2]
[391622871,1760709042628,-2050.0,0.00023188,2]
[391622872,1760709042640,-749.0,0.00023188,2]
[391622873,1760709042649,-3408.0,0.00023188,2]
[391622874,1760709042659,-1267.0,0.00023188,2]
[391622875,1760709042670,-1310.0,0.00023188,2]
[391622876,1760709042684,-1589.0,0.00023188,2]
[391622877,1760709042694,-605.0,0.00023188,2]
[391622878,1760709042704,-571.0,0.00023188,2]
[391622879,1760709042714,-2546.0,0.00023188,2]
[391622880,1760709042724,-1183.0,0.00023188,2]
[391622881,1760709042734,-902.0,0.00023188,2]
[391622882,1760709042744,-816.0,0.00023188,2]
[391622883,1760709042753,-658.0,0.00023188,2]
[391622884,1760709042763,-6436.0,0.00023188,2]
[391622885,1760709042773,-6445.0,0.00023188,2]
[391622886,1760709042783,-5512.0,0.000234,5]
[391622887,1760709042793,-2000.0,0.000236,2]
[391622888,1760709042802,-357.71693691,0.00023756,2]
[391622889,1760709042811,-150.0,0.00023835,2]
[391622890,1760709042822,-8626.94837642,0.00023862,2]
[391622891,1760709042831,-78393.20296023,0.00023865,2]
[391622892,1760709042842,-243.52623803,0.00023866,2]
[391622893,1760709042851,-489.61924739,0.00023872,2]
[391622894,1760709042862,-243.52623803,0.00023885,2]
[391622895,1760709042871,-5350.78122027,0.00023886,2]
[391622896,1760709042883,-489.61924739,0.00023888,2]
[391622897,1760709042893,-5350.78122027,0.00023894,2]
[391622898,1760709042903,-243.52623803,0.00023895,2]
[391622900,1760709042913,-78393.20296023,0.00023903,2]
[391622902,1760709042923,-4781.74141661,0.00023913,2]
[391622904,1760709042936,-489.61924739,0.00023918,2]
[391622906,1760709042946,-4781.74141661,0.00023933,2]
[391622908,1760709042955,-8626.94837642,0.00023933,2]
[391622911,1760709042965,-25012.07846247,0.00023934,2]
[391622913,1760709042975,-5350.78122027,0.00023935,2]
[391622915,1760709042985,-78393.20296023,0.00023935,2]
[391622917,1760709042995,-25012.07846247,0.00023935,2]
[391622919,1760709043005,-78393.20296023,0.00023957,2]
[391622920,1760709043014,-25012.07846247,0.00023958,2]
[391622922,1760709043024,-243.52623803,0.00023961,2]
[391622924,1760709043034,-4781.74141661,0.00023972,2]
[391622926,1760709043044,-5350.78122027,0.00023976,2]
[391622928,1760709043054,-8626.94837642,0.00023976,2]
[391622930,1760709043064,-8626.94837642,0.00023985,2]
[391622932,1760709043073,-25012.07846247,0.00023985,2]
[391622933,1760709043082,-489.61924739,0.00023994,2]
[391622935,1760709043092,-4781.74141661,0.00023999,2]
[391622937,1760709043102,-373.07297731,0.00024083,2]
[391622939,1760709043112,-309.29654756,0.00024083,2]
[391622941,1760709043121,-646.65982734,0.00024085,2]
[391622943,1760709043131,-199.10964775,0.000243,2]
[391622945,1760709043141,-14928.46,0.000246,7]
[391622947,1760709043151,-160.43965023,0.00024647,2]
[391622948,1760709043160,-151.0,0.00024654,7]
[391622950,1760709043170,-500.0,0.00024657,2]
[391622952,1760709043182,-500.0,0.00024657,2]
[391622954,1760709043191,-218.59951005,0.00024657,2]
[391622956,1760709043201,-500.0,0.00024657,2]
[391622958,1760709043211,-500.0,0.00024657,2]
[391622960,1760709043220,-500.0,0.00024657,2]
[391622961,1760709043230,-500.0,0.00024657,2]
[391622963,1760709043240,-500.0,0.00024657,2]
[391622965,1760709043249,-500.0,0.00024657,2]
[391622967,1760709043259,-500.0,0.00024657,2]
[391622969,1760709043269,-500.0,0.00024657,2]
[391622970,1760709043278,-520.24262725,0.00024657,2]
[391622972,1760709043287,-500.0,0.00024657,2]
[391622974,1760709043297,-500.0,0.00024657,2]
[391622976,1760709043307,-504.49515593,0.00024657,2]
[391622978,1760709043316,-501.79394249,0.00024657,2]
[391622980,1760709043326,-543.59552556,0.00024657,2]
[391622982,1760709043336,-500.0,0.00024657,2]
[391622983,1760709043346,-501.00313011,0.00024657,2]
[391622985,1760709043356,-457.41416845,0.00024657,2]
[391622986,1760709043365,-500.0,0.00024657,2]
[391622987,1760709043375,-500.94702737,0.00024657,2]
[391622988,1760709043385,-500.0,0.00024657,2]
[391622989,1760709043395,-367.73440615,0.00024657,2]
[391622990,1760709043404,-500.27891344,0.00024657,2]
[391622991,1760709043414,-500.0,0.00024657,2]
[391622992,1760709043424,-152.12551006,0.00024657,2]
[391622993,1760709043436,-332.35541432,0.00024657,2]
[391622994,1760709043446,-500.0,0.00024657,2]
[391622995,1760709043456,-500.43802131,0.00024657,2]
[391622996,1760709043466,-500.0,0.00024657,2]
[391622997,1760709043476,-208.03907493,0.00024657,2]
[391622998,1760709043486,-500.0,0.00024657,2]
[391622999,1760709043496,-500.0,0.00024657,2]
[391623000,1760709043505,-428.83275449,0.00024657,2]
[391623001,1760709043515,-501.13920271,0.00024657,2]
[391623002,1760709043524,-500.0,0.00024657,2]
[391623003,1760709043534,-371.70461225,0.00024657,2]
[391623004,1760709043544,-500.0,0.00024657,2]
[391623005,1760709043554,-500.0,0.00024657,2]
[391623006,1760709043564,-500.0,0.00024657,2]
[391623007,1760709043574,-500.0,0.00024657,2]
[391623008,1760709043586,-500.0,0.00024657,2]
[391623009,1760709043601,-500.0,0.00024657,2]
[391623010,1760709043612,-350.8745913,0.00024657,2]
[391623011,1760709043622,-500.0,0.00024657,2]
[391623012,1760709043633,-500.0,0.00024657,2]
[391623013,1760709043643,-500.0,0.00024657,2]
[391623014,1760709043653,-500.0,0.00024657,2]
[391623015,1760709043664,-500.0,0.00024657,2]
[391623016,1760709043674,-500.0,0.00024657,2]
[391623017,1760709043692,-501.25544028,0.00024657,2]
[391623018,1760709043702,-375.65061374,0.00024657,2]
[391623019,1760709043712,-500.0,0.00024657,2]
[391623020,1760709043723,-500.0,0.00024657,2]
[391623021,1760709043732,-500.0,0.00024657,2]
[391623022,1760709043742,-500.0,0.00024657,2]
[391623023,1760709043752,-507.31850178,0.00024657,2]
[391623024,1760709043762,-500.0,0.00024657,2]
[391623025,1760709043772,-500.0,0.00024657,2]
[391623026,1760709043782,-500.0,0.00024657,2]
[391623027,1760709043792,-500.0,0.00024657,2]
[391623028,1760709043802,-500.0,0.00024657,2]
[391623029,1760709043811,-414.17923961,0.00024657,2]
[391623030,1760709043821,-500.0,0.00024657,2]
[391623031,1760709043831,-500.0,0.00024657,2]
[391623032,1760709043840,-500.0,0.00024657,2]
[391623033,1760709043850,-500.0,0.00024657,2]
[391623034,1760709043860,-500.0,0.00024657,2]
[391623035,1760709043870,-500.0,0.00024657,2]
[391623036,1760709043879,-500.0,0.00024657,2]
[391623037,1760709043889,-500.0,0.00024657,2]
[391623038,1760709043899,-500.0,0.00024657,2]
[391623039,1760709043908,-500.0,0.00024657,2]
[391623040,1760709043918,-500.0,0.00024657,2]
[391623041,1760709043931,-500.0,0.00024657,2]
[391623042,1760709043942,-500.0,0.00024657,2]
[391623043,1760709043952,-500.0,0.00024657,2]
[391623044,1760709043961,-500.0,0.00024657,2]
[391623045,1760709043971,-500.0,0.00024657,2]
[391623046,1760709043981,-500.0,0.00024657,2]
[391623047,1760709043991,-500.0,0.00024657,2]
[391623048,1760709044002,-500.0,0.00024657,2]
[391623049,1760709044011,-500.0,0.00024657,2]
[391623050,1760709044022,-500.0,0.00024657,2]
[391623051,1760709044031,-500.0,0.00024657,2]
[391623052,1760709044041,-500.0,0.00024657,2]
[391623053,1760709044342,-500.0,0.00024657,2]
[391623054,1760709044361,-271.35106557,0.00024657,2]
[391623055,1760709044372,-516.28143483,0.00024657,2]
[391623056,1760709044382,-500.46171795,0.00024657,2]
[391623057,1760709044392,-341.99088367,0.00024657,2]
[391623058,1760709044403,-270.81329954,0.00024657,2]
[391623059,1760709044414,-503.12123125,0.00024657,2]
[391623060,1760709044424,-500.29396371,0.00024657,2]
[391623061,1760709044438,-501.36212952,0.00024657,2]
[391623062,1760709044447,-500.0,0.00024657,2]
[391623063,1760709044457,-502.86816992,0.00024657,2]
[391623064,1760709044467,-551.19942865,0.00024657,2]
[391623065,1760709044477,-500.0,0.00024657,2]
[391623066,1760709044486,-500.0,0.00024657,2]
[391623067,1760709044496,-500.0,0.00024657,2]
[391623068,1760709044505,-502.02201423,0.00024657,2]
[391623069,1760709044515,-500.0,0.00024657,2]
[391623070,1760709044525,-500.0,0.00024657,2]
[391623071,1760709044535,-504.21820542,0.00024657,2]
[391623072,1760709044545,-500.0,0.00024657,2]
[391623073,1760709044555,-500.0,0.00024657,2]
[391623074,1760709044564,-500.0,0.00024657,2]
[391623075,1760709044574,-500.0,0.00024657,2]
[391623076,1760709044585,-500.0,0.00024657,2]
[391623077,1760709044599,-500.0,0.00024657,2]
[391623078,1760709044609,-500.0,0.00024657,2]
[391623079,1760709044619,-500.0,0.00024657,2]
[391623080,1760709044630,-406.37951371,0.00024657,2]
[391623081,1760709044639,-500.0,0.00024657,2]
[391623082,1760709044650,-500.0,0.00024657,2]
[391623083,1760709044660,-503.45832364,0.00024657,2]
[391623084,1760709044671,-500.0,0.00024657,2]
[391623085,1760709044685,-507.25442039,0.00024657,2]
[391623086,1760709044695,-500.0,0.00024657,2]
[391623087,1760709044704,-500.0,0.00024657,2]
[391623088,1760709044714,-500.0,0.00024657,2]
[391623089,1760709044724,-579.63386595,0.00024657,2]